fUST/lending_fUST_20250901
["ID","MTS","AMOUNT","RATE_DAILY","PERIOD"]
[382732562,1756723841565,-480.0,0.00013698,2]
[382732564,1756723841574,-480.0,0.00013698,2]
[382732566,1756723841583,-480.0,0.00013698,2]
[382732567,1756723841592,-480.0,0.00013698,2]
[382732569,1756723841603,-295.55875626,0.00013698,2]
[382732571,1756723841613,-480.0,0.00013698,2]
[382732573,1756723841623,-480.0,0.00013698,2]
[382732575,1756723841632,-480.0,0.00013698,2]
[382732577,1756723841641,-480.0,0.00013698,2]
[382732579,1756723841651,-480.0,0.00013698,2]
[382732581,1756723841660,-480.0,0.00013698,2]
[382732583,1756723841669,-480.0,0.00013698,2]
[382732585,1756723841678,-480.0,0.00013698,2]
[382732587,1756723841688,-480.0,0.00013698,2]
[382732589,1756723841697,-480.0,0.00013698,2]
[382732591,1756723841706,-480.0,0.00013698,2]
[382732593,1756723841715,-708.94,0.00013698,2]
[382732595,1756723841723,-1175.5,0.00013698,2]
[382732597,1756723841732,-480.0,0.00013698,2]
[382732599,1756723841741,-790.67,0.00013698,2]
[382732601,1756723841751,-480.0,0.00013698,2]
[382732603,1756723841760,-480.0,0.00013698,2]
[382732605,1756723841769,-426.79235665,0.00013698,2]
[382732607,1756723841779,-480.0,0.00013698,2]
[382732609,1756723841788,-480.0,0.00013698,2]
[382732611,1756723841797,-463.39145523,0.00013698,2]
[382732613,1756723841806,-480.0,0.00013698,2]
[382732615,1756723841815,-482.06845669,0.00013698,2]
[382732617,1756723841825,-738.68,0.00013698,2]
[382732619,1756723841834,-481.61529543,0.00013698,2]
[382732621,1756723841843,-480.0,0.00013698,2]
[382732623,1756723841854,-482.53308073,0.00013698,2]
[382732625,1756723841863,-480.0,0.00013698,2]
[382732627,1756723841872,-569.86,0.00013698,2]
[382732629,1756723841881,-697.71,0.00013698,2]
[382732631,1756723841890,-930.18,0.00013698,2]
[382732633,1756723841899,-480.0,0.00013698,2]
[382732635,1756723841908,-480.0,0.00013698,2]
[382732637,1756723841915,-480.0,0.00013698,2]
[382732639,1756723841924,-744.96,0.00013698,2]
[382732641,1756723841933,-480.0,0.00013698,2]
[382732643,1756723841942,-480.0,0.00013698,2]
[382732645,1756723841951,-704.98,0.00013698,2]
[382732647,1756723841960,-533.28,0.00013698,2]
[382732649,1756723841969,-480.0,0.00013698,2]
[382732651,1756723841979,-480.0,0.00013698,2]
[382732653,1756723841988,-480.0,0.00013698,2]
[382732655,1756723841997,-480.0,0.00013698,2]
[382732657,1756723842007,-1029.9,0.00013698,2]
[382732659,1756723842016,-734.56,0.00013698,2]
[382732661,1756723842025,-480.0,0.00013698,2]
[382732663,1756723842034,-480.0,0.00013698,2]
[382732665,1756723842048,-480.0,0.00013698,2]
[382732667,1756723842057,-536.47,0.00013698,2]
[382732669,1756723842066,-480.0,0.00013698,2]
[382732671,1756723842075,-830.95,0.00013698,2]
[382732673,1756723842086,-480.0,0.00013698,2]
[382732675,1756723842096,-629.3,0.00013698,2]
[382732677,1756723842107,-480.0,0.00013698,2]
[382732679,1756723842118,-942.68,0.00013698,2]
[382732681,1756723842127,-1196.88,0.00013698,2]
[382732683,1756723842138,-481.65794519,0.00013698,2]
[382732685,1756723842146,-480.0,0.00013698,2]
[382732687,1756723842155,-873.73,0.00013698,2]
[382732689,1756723842164,-481.83652388,0.00013698,2]
[382732691,1756723842173,-596.3,0.00013698,2]
[382732693,1756723842182,-503.54404293,0.00013698,2]
[382732695,1756723842192,-480.0,0.00013698,2]
[382732697,1756723842201,-480.0,0.00013698,2]
[382732699,1756723842211,-482.95724241,0.00013698,2]
[382732701,1756723842222,-480.0,0.00013698,2]
[382732703,1756723842232,-480.0,0.00013698,2]
[382732705,1756723842242,-480.0,0.00013698,2]
[382732707,1756723842251,-480.0,0.00013698,2]
[382732709,1756723842262,-480.0,0.00013698,2]
[382732711,1756723842272,-480.0,0.00013698,2]
[382732713,1756723842282,-555.65857154,0.00013698,2]
[382732715,1756723842291,-480.0,0.00013698,2]
[382732717,1756723842301,-480.0,0.00013698,2]
[382732720,1756723842311,-480.0,0.00013698,2]
[382732722,1756723842321,-480.0,0.00013698,2]
[382732724,1756723842331,-480.0,0.00013698,2]
[382732725,1756723842340,-480.0,0.00013698,2]
[382732727,1756723842349,-480.0,0.00013698,2]
[382732729,1756723842361,-480.0,0.00013698,2]
[382732731,1756723842370,-480.0,0.00013698,2]
[382732733,1756723842379,-480.0,0.00013698,2]
[382732735,1756723842389,-480.0,0.00013698,2]
[382732737,1756723842398,-480.0,0.00013698,2]
[382732739,1756723842408,-480.0,0.00013698,2]
[382732742,1756723842417,-500.0,0.00013698,2]
[382732743,1756723842427,-480.0,0.00013698,2]
[382732745,1756723842436,-480.0,0.00013698,2]
[382732747,1756723842445,-551.81,0.00013698,2]
[382732749,1756723842455,-480.0,0.00013698,2]
[382732751,1756723842464,-481.90278078,0.00013698,2]
[382732753,1756723842474,-375.32385594,0.00013698,2]
[382732755,1756723842483,-480.0,0.00013698,2]
[382732757,1756723842492,-480.0,0.00013698,2]
[382732759,1756723842502,-480.0,0.00013698,2]
[382732761,1756723842511,-480.0,0.00013698,2]
[382732763,1756723842520,-480.0,0.00013698,2]
[382732765,1756723842529,-480.0,0.00013698,2]
[382732767,1756723842539,-480.0,0.00013698,2]
[382732769,1756723842549,-480.0,0.00013698,2]
[382732771,1756723842559,-466.02132451,0.00013698,2]
[382732773,1756723842569,-480.0,0.00013698,2]
[382732775,1756723842578,-480.0,0.00013698,2]
[382732777,1756723842587,-480.0,0.00013698,2]
[382732779,1756723842596,-480.0,0.00013698,2]
[382732781,1756723842607,-480.0,0.00013698,2]
[382732783,1756723842617,-480.0,0.00013698,2]
[382732785,1756723842627,-596.19,0.00013698,2]
[382732787,1756723842636,-480.0,0.00013698,2]
[382732789,1756723842645,-480.0,0.00013698,2]
[382732791,1756723842655,-1344.7,0.00013698,2]
[382732793,1756723842664,-480.0,0.00013698,2]
[382732795,1756723842673,-480.0,0.00013698,2]
[382732797,1756723842682,-480.0,0.00013698,2]
[382732799,1756723842691,-480.0,0.00013698,2]
[382732801,1756723842702,-480.0,0.00013698,2]
[382732803,1756723842712,-480.0,0.00013698,2]
[382732805,1756723842721,-480.0,0.00013698,2]
[382732807,1756723842730,-480.0,0.00013698,2]
[382732809,1756723842740,-480.0,0.00013698,2]
[382732811,1756723842749,-480.7163408,0.00013698,2]
[382732813,1756723842758,-480.0,0.00013698,2]
[382732816,1756723842767,-635.41,0.00013698,2]
[382732819,1756723842777,-835.1,0.00013698,2]
[382732821,1756723842786,-480.0,0.00013698,2]
[382732823,1756723842795,-480.0,0.00013698,2]
[382732827,1756723842805,-480.0,0.00013698,2]
[382732831,1756723842815,-480.0,0.00013698,2]
[382732835,1756723842824,-637.59,0.00013698,2]
[382732838,1756723842833,-480.0,0.00013698,2]
[382732841,1756723842843,-480.0,0.00013698,2]
[382732844,1756723842852,-484.08489129,0.00013698,2]
[382732846,1756723842863,-480.0,0.00013698,2]
[382732848,1756723842873,-480.0,0.00013698,2]
[382732850,1756723842882,-480.0,0.00013698,2]
[382732852,1756723842891,-480.0,0.00013698,2]
[382732854,1756723842900,-482.44762185,0.00013698,2]
[382732856,1756723842909,-526.89653165,0.00013698,2]
[382732858,1756723842919,-482.83445905,0.00013698,2]
[382732860,1756723842928,-480.0,0.00013698,2]
[382732862,1756723842937,-480.0,0.00013698,2]
[382732864,1756723842947,-480.0,0.00013698,2]
[382732866,1756723842956,-685.46,0.00013698,2]
[382732868,1756723842966,-1159.39,0.00013698,2]
[382732870,1756723842975,-480.0,0.00013698,2]
[382732872,1756723842984,-480.0,0.00013698,2]
[382732874,1756723842993,-480.0,0.00013698,2]
[382732876,1756723843002,-480.0,0.00013698,2]
[382732878,1756723843011,-480.0,0.00013698,2]
[382732880,1756723843019,-480.0,0.00013698,2]
[382732882,1756723843028,-480.0,0.00013698,2]
[382732884,1756723843041,-1717.94,0.00013698,2]
[382732886,1756723843053,-480.0,0.00013698,2]
[382732888,1756723843063,-830.62,0.00013698,2]
[382732890,1756723843072,-480.0,0.00013698,2]
[382732892,1756723843082,-480.0,0.00013698,2]
[382732894,1756723843091,-480.0,0.00013698,2]
[382732896,1756723843100,-659.88,0.00013698,2]
[382732898,1756723843110,-480.74850527,0.00013698,2]
[382732900,1756723843119,-480.0,0.00013698,2]
[382732902,1756723843129,-480.0,0.00013698,2]
[382732904,1756723843138,-480.0,0.00013698,2]
[382732906,1756723843147,-480.0,0.00013698,2]
[382732908,1756723843156,-934.45,0.00013698,2]
[382732910,1756723843165,-2004.87,0.00013698,2]
[382732912,1756723843174,-480.0,0.00013698,2]
[382732914,1756723843184,-480.0,0.00013698,2]
[382732916,1756723843193,-480.0,0.00013698,2]
[382732918,1756723843203,-492.66256254,0.00013698,2]
[382732920,1756723843213,-480.0,0.00013698,2]
[382732922,1756723843223,-480.0,0.00013698,2]
[382732924,1756723843233,-480.0,0.00013698,2]
[382732926,1756723843242,-480.0,0.00013698,2]
[382732928,1756723843251,-480.0,0.00013698,2]
[382732930,1756723843260,-480.0,0.00013698,2]
[382732932,1756723843270,-676.45,0.00013698,2]
[382732934,1756723843281,-481.35453299,0.00013698,2]
[382732936,1756723843290,-480.0,0.00013698,2]
[382732938,1756723843299,-480.0,0.00013698,2]
[382732940,1756723843309,-480.0,0.00013698,2]
[382732942,1756723843318,-576.92,0.00013698,2]
[382732944,1756723843327,-961.39,0.00013698,2]
[382732946,1756723843337,-481.86596231,0.00013698,2]
[382732948,1756723843347,-480.0,0.00013698,2]
[382732950,1756723843357,-480.0,0.00013698,2]
[382732952,1756723843367,-4973.39,0.00013698,2]
[382732954,1756723843377,-172.59550203,0.00013698,2]
[382732956,1756723843387,-808.41,0.00013698,2]
[382732958,1756723843396,-480.0,0.00013698,2]
[382732960,1756723843406,-482.37365407,0.00013698,2]
[382732962,1756723843416,-480.0,0.00013698,2]
[382732964,1756723843425,-480.0,0.00013698,2]
[382732967,1756723843435,-480.0,0.00013698,2]
[382732969,1756723843444,-515.43,0.00013698,2]
[382732971,1756723843453,-480.0,0.00013698,2]
[382732973,1756723843462,-480.0,0.00013698,2]
[382732975,1756723843471,-480.0,0.00013698,2]
[382732977,1756723843480,-480.0,0.00013698,2]
[382732979,1756723843490,-480.0,0.00013698,2]
[382732982,1756723843499,-500.0,0.00013698,2]
[382732985,1756723843508,-500.0,0.00013698,2]
[382732988,1756723843517,-500.0,0.00013698,2]
[382732991,1756723843526,-500.0,0.00013698,2]
[382732994,1756723843536,-500.0,0.00013698,2]
[382732996,1756723843545,-500.0,0.00013698,2]
[382732998,1756723843554,-500.0,0.00013698,2]
[382733000,1756723843563,-500.0,0.00013698,2]
[382733001,1756723843572,-274.09152457,0.00013698,2]
[382733002,1756723843580,-480.0,0.00013698,2]
[382733003,1756723843589,-480.0,0.00013698,2]
[382733004,1756723843599,-483.3550606,0.00013698,2]
[382733005,1756723843609,-480.0,0.00013698,2]
[382733006,1756723843618,-548.95,0.00013698,2]
[382733007,1756723843627,-480.0,0.00013698,2]
[382733008,1756723843636,-539.5,0.00013698,2]
[382733009,1756723843645,-4803.09,0.00013698,2]
[382733010,1756723843654,-571.81544095,0.00013698,2]
[382733011,1756723843662,-530.04,0.00013698,2]
[382733012,1756723843671,-480.0,0.00013698,2]
[382733013,1756723843680,-480.0,0.00013698,2]
[382733014,1756723843689,-1992.65,0.00013698,2]
[382733015,1756723843698,-480.0,0.00013698,2]
[382733016,1756723843707,-480.0,0.00013698,2]
[382733017,1756723843716,-480.0,0.00013698,2]
[382733019,1756723843725,-480.0,0.00013698,2]
[382733020,1756723843734,-480.0,0.00013698,2]
[382733022,1756723843743,-1769.45,0.00013698,2]
[382733024,1756723843752,-480.0,0.00013698,2]
[382733026,1756723843761,-1614.21,0.00013698,2]
[382733028,1756723843771,-480.0,0.00013698,2]
[382733030,1756723843780,-480.0,0.00013698,2]
[382733032,1756723843789,-480.0,0.00013698,2]
[382733034,1756723843798,-480.0,0.00013698,2]
[382733036,1756723843807,-609.73,0.00013698,2]
[382733038,1756723843816,-481.53332325,0.00013698,2]
[382733040,1756723843825,-480.0,0.00013698,2]
[382733042,1756723843834,-480.0,0.00013698,2]
[382733044,1756723843843,-480.0,0.00013698,2]
[382733046,1756723843853,-480.0,0.00013698,2]
[382733048,1756723843863,-480.0,0.00013698,2]
[382733050,1756723843872,-567.26,0.00013698,2]
[382733052,1756723843882,-480.0,0.00013698,2]
[382733054,1756723843891,-507.74,0.00013698,2]
[382733056,1756723843900,-480.0,0.00013698,2]
[382733058,1756723843909,-628.27,0.00013698,2]
[382733060,1756723843918,-480.0,0.00013698,2]
[382733062,1756723843928,-480.0,0.00013698,2]
[382733064,1756723843938,-480.0,0.00013698,2]
[382733067,1756723843947,-508.74794958,0.00013698,2]
[382733070,1756723843956,-480.0,0.00013698,2]
[382733099,1756723844129,-480.0,0.00013698,2]
[382733101,1756723844139,-450.99480377,0.00013698,2]
[382733103,1756723844148,-530.82,0.00013698,2]
[382733105,1756723844158,-480.0,0.00013698,2]
[382733107,1756723844168,-480.0,0.00013698,2]
[382733109,1756723844177,-480.0,0.00013698,2]
[382733111,1756723844187,-480.0,0.00013698,2]
[382733113,1756723844196,-480.0,0.00013698,2]
[382733115,1756723844205,-4977.91,0.00013698,2]
[382733117,1756723844215,-480.0,0.00013698,2]
[382733119,1756723844225,-480.0,0.00013698,2]
[382733121,1756723844234,-581.07,0.00013698,2]
[382733123,1756723844243,-480.0,0.00013698,2]
[382733125,1756723844252,-480.0,0.00013698,2]
[382733127,1756723844261,-675.96,0.00013698,2]
[382733129,1756723844271,-480.0,0.00013698,2]
[382733131,1756723844280,-480.0,0.00013698,2]
[382733133,1756723844289,-480.0,0.00013698,2]
[382733135,1756723844299,-1301.36,0.00013698,2]
[382733137,1756723844308,-500.0,0.00013698,2]
[382733139,1756723844318,-500.0,0.00013698,2]
[382733141,1756723844327,-472.41800137,0.00013698,2]
[382733143,1756723844337,-480.0,0.00013698,2]
[382733145,1756723844346,-480.0,0.00013698,2]
[382733147,1756723844355,-480.0,0.00013698,2]
[382733149,1756723844365,-480.0,0.00013698,2]
[382733151,1756723844375,-907.14,0.00013698,2]
[382733153,1756723844384,-480.0,0.00013698,2]
[382733155,1756723844393,-480.0,0.00013698,2]
[382733157,1756723844403,-480.0,0.00013698,2]
[382733159,1756723844412,-480.0,0.00013698,2]
[382733161,1756723844421,-480.0,0.00013698,2]
[382733163,1756723844430,-796.25,0.00013698,2]
[382733165,1756723844439,-480.0,0.00013698,2]
[382733167,1756723844450,-480.0,0.00013698,2]
[382733169,1756723844461,-482.75407497,0.00013698,2]
[382733171,1756723844470,-208.60472752,0.00013698,2]
[382733173,1756723844480,-480.0,0.00013698,2]
[382733175,1756723844489,-496.88535369,0.00013698,2]
[382733177,1756723844498,-480.0,0.00013698,2]
[382733179,1756723844508,-486.66,0.00013698,2]
[382733181,1756723844517,-567.03920444,0.00013698,2]
[382733183,1756723844527,-480.0,0.00013698,2]
[382733185,1756723844536,-1004.78,0.00013698,2]
[382733187,1756723844546,-480.0,0.00013698,2]
[382733189,1756723844555,-540.74,0.00013698,2]
[382733191,1756723844564,-649.74,0.00013698,2]
[382733193,1756723844574,-480.0,0.00013698,2]
[382733195,1756723844584,-480.0,0.00013698,2]
[382733197,1756723844593,-480.0,0.00013698,2]
[382733199,1756723844602,-480.0,0.00013698,2]
[382733201,1756723844612,-480.0,0.00013698,2]
[382733203,1756723844622,-480.0,0.00013698,2]
[382733205,1756723844631,-480.61885366,0.00013698,2]
[382733207,1756723844643,-637.67,0.00013698,2]
[382733209,1756723844652,-1503.52,0.00013698,2]
[382733211,1756723844662,-480.0,0.00013698,2]
[382733213,1756723844672,-480.0,0.00013698,2]
[382733215,1756723844681,-480.0,0.00013698,2]
[382733217,1756723844691,-480.0,0.00013698,2]
[382733219,1756723844700,-480.0,0.00013698,2]
[382733221,1756723844709,-480.0,0.00013698,2]
[382733222,1756723844719,-480.0,0.00013698,2]
[382733225,1756723844729,-1478.78,0.00013698,2]
[382733227,1756723844738,-480.0,0.00013698,2]
[382733229,1756723844748,-2566.37,0.00013698,2]
[382733231,1756723844757,-480.0,0.00013698,2]
[382733233,1756723844766,-480.42453521,0.00013698,2]
[382733235,1756723844776,-281.33145424,0.00013698,2]
[382733237,1756723844786,-488.04670965,0.00013698,2]
[382733239,1756723844795,-900.37,0.00013698,2]
[382733241,1756723844804,-480.0,0.00013698,2]
[382733243,1756723844814,-557.56,0.00013698,2]
[382733244,1756723844823,-480.0,0.00013698,2]
[382733247,1756723844833,-480.0,0.00013698,2]
[382733248,1756723844842,-656.27,0.00013698,2]
[382733250,1756723844851,-480.0,0.00013698,2]
[382733252,1756723844861,-562.77,0.00013698,2]
[382733254,1756723844871,-484.09405176,0.00013698,2]
[382733256,1756723844880,-480.0,0.00013698,2]
[382733258,1756723844889,-480.0,0.00013698,2]
[382733260,1756723844899,-480.0,0.00013698,2]
[382733262,1756723844908,-480.0,0.00013698,2]
[382733264,1756723844918,-480.0,0.00013698,2]
[382733266,1756723844927,-1948.89,0.00013698,2]
[382733268,1756723844937,-480.0,0.00013698,2]
[382733270,1756723844946,-480.0,0.00013698,2]
[382733272,1756723844956,-480.0,0.00013698,2]
[382733274,1756723844966,-480.0,0.00013698,2]
[382733276,1756723844976,-531.71312996,0.00013698,2]
[382733278,1756723844986,-539.36,0.00013698,2]
[382733280,1756723844998,-480.0,0.00013698,2]
[382733282,1756723845007,-686.48,0.00013698,2]
[382733284,1756723845017,-755.06,0.00013698,2]
[382733286,1756723845027,-1000.0,0.00013698,2]
[382733288,1756723845037,-480.0,0.00013698,2]
[382733290,1756723845050,-480.0,0.00013698,2]
[382733292,1756723845059,-480.0,0.00013698,2]
[382733294,1756723845068,-549.83,0.00013698,2]
[382733297,1756723845079,-480.0,0.00013698,2]
[382733298,1756723845089,-480.0,0.00013698,2]
[382733301,1756723845100,-480.0,0.00013698,2]
[382733303,1756723845111,-481.50359992,0.00013698,2]
[382733304,1756723845121,-480.0,0.00013698,2]
[382733306,1756723845131,-480.0,0.00013698,2]
[382733309,1756723845141,-480.0,0.00013698,2]
[382733311,1756723845150,-480.0,0.00013698,2]
[382733313,1756723845159,-480.0,0.00013698,2]
[382733315,1756723845169,-480.0,0.00013698,2]
[382733317,1756723845178,-798.42,0.00013698,2]
[382733319,1756723845187,-480.0,0.00013698,2]
[382733321,1756723845196,-726.87,0.00013698,2]
[382733323,1756723845206,-484.81447225,0.00013698,2]
[382733324,1756723845215,-850.46,0.00013698,2]
[382733326,1756723845225,-480.0,0.00013698,2]
[382733328,1756723845234,-480.0,0.00013698,2]
[382733331,1756723845244,-480.0,0.00013698,2]
[382733333,1756723845253,-481.68747919,0.00013698,2]
[382733334,1756723845262,-480.0,0.00013698,2]
[382733336,1756723845271,-480.0,0.00013698,2]
[382733338,1756723845281,-497.95,0.00013698,2]
[382733341,1756723845291,-480.0,0.00013698,2]
[382733343,1756723845300,-480.0,0.00013698,2]
[382733345,1756723845310,-480.0,0.00013698,2]
[382733347,1756723845319,-480.0,0.00013698,2]
[382733348,1756723845328,-480.0,0.00013698,2]
[382733350,1756723845337,-313.4301377,0.00013698,2]
[382733352,1756723845347,-480.0,0.00013698,2]
[382733354,1756723845357,-480.0,0.00013698,2]
[382733356,1756723845366,-439.53512927,0.00013698,2]
[382733358,1756723845375,-480.0,0.00013698,2]
[382733360,1756723845385,-480.0,0.00013698,2]
[382733362,1756723845394,-3368.32,0.00013698,2]
[382733364,1756723845403,-480.0,0.00013698,2]
[382733367,1756723845413,-480.0,0.00013698,2]
[382733369,1756723845423,-925.57,0.00013698,2]
[382733371,1756723845433,-480.0,0.00013698,2]
[382733373,1756723845443,-480.0,0.00013698,2]
[382733375,1756723845453,-500.0,0.00013698,2]
[382733377,1756723845462,-4852.355802,0.00013699,2]
[382733379,1756723845471,-151.0,0.00013699,2]
[382733381,1756723845480,-151.0,0.00013699,2]
[382733383,1756723845489,-151.0,0.00013699,2]
[382733385,1756723845498,-40892.1289664,0.00013699,2]
[382733387,1756723845507,-151.0,0.00013699,2]
[382733389,1756723845517,-1453.779229,0.00013699,2]
[382733391,1756723845526,-619.1463561,0.00013699,2]
[382733393,1756723845535,-151.0,0.00013699,2]
[382733395,1756723845544,-151.0,0.00013699,2]
[382733397,1756723845554,-151.0,0.00013699,2]
[382733399,1756723845563,-151.0,0.00013699,2]
[382733401,1756723845572,-151.0,0.00013699,2]
[382733403,1756723845581,-151.0,0.00013699,2]
[382733405,1756723845591,-163.117839,0.00013699,2]
[382733407,1756723845600,-151.0,0.00013699,2]
[382733409,1756723845610,-151.0,0.00013699,2]
[382733411,1756723845619,-151.0,0.00013699,2]
[382733412,1756723845628,-151.0,0.00013699,2]
[382733415,1756723845640,-151.0,0.000137,2]
[382733417,1756723845650,-151.0,0.000138,2]
[382733418,1756723845659,-4323.08043642,0.0001381,2]
[382733420,1756723845669,-151.0,0.0001381,2]
[382733422,1756723845678,-151.0,0.0001381,2]
[382733425,1756723845687,-155.894958,0.0001381,2]
[382733427,1756723845697,-151.0,0.000139,2]
[382733429,1756723845707,-500.0,0.00013919,2]
[382733431,1756723845716,-846.10922732,0.00013923,2]
[382733433,1756723845725,-217.44302069,0.00013923,2]
[382733435,1756723845734,-232.83393981,0.00013923,2]
[382733437,1756723845743,-160.0,0.00013923,2]
[382733439,1756723845752,-417.15472785,0.00013923,2]
[382733441,1756723845762,-425.82406011,0.00013923,2]
[382733443,1756723845771,-160.0,0.00013923,2]
[382733445,1756723845780,-160.0,0.00013923,2]
[382733448,1756723845790,-530.14184084,0.00013923,2]
[382733451,1756723845799,-160.0,0.00013923,2]
[382733454,1756723845808,-160.0,0.00013923,2]
[382733457,1756723845817,-160.0,0.00013923,2]
[382733460,1756723845826,-160.0,0.00013923,2]
[382733463,1756723845835,-11366.76240249,0.00013924,2]
[382733466,1756723845845,-453.0,0.00013958,2]
[382733469,1756723845854,-241.85,0.00013958,2]
[382733473,1756723845866,-241.85,0.00013958,2]
[382733475,1756723845875,-241.85,0.00013958,2]
[382733478,1756723845884,-241.85,0.00013958,2]
[382733481,1756723845894,-241.85,0.00013958,2]
[382733484,1756723845903,-241.85,0.00013958,2]
[382733487,1756723845913,-241.87,0.00013958,2]
[382733490,1756723845923,-1017.0,0.00013964,2]
[382733493,1756723845932,-151.0,0.00013964,2]
[382733496,1756723845941,-500.0,0.00013964,2]
[382733499,1756723845951,-151.0,0.00013964,2]
[382733501,1756723845960,-152.14769542,0.00013964,2]
[382733503,1756723845968,-151.0,0.00013964,2]
[382733504,1756723845977,-151.0,0.00013964,2]
[382733505,1756723845986,-300.0,0.00013971,2]
[382733506,1756723845995,-300.0,0.00013971,2]
[382733507,1756723846004,-300.0,0.00013971,2]
[382733508,1756723846013,-300.0,0.00013971,2]
[382733509,1756723846022,-300.0,0.00013971,2]
[382733510,1756723846031,-300.0,0.00013971,2]
[382733511,1756723846041,-300.0,0.00013971,2]
[382733512,1756723846051,-300.0,0.00013971,2]
[382733513,1756723846060,-300.0,0.00013971,2]
[382733514,1756723846070,-300.0,0.00013971,2]
[382733515,1756723846079,-300.0,0.00013971,2]
[382733516,1756723846089,-300.0,0.00013971,2]
[382733517,1756723846098,-300.0,0.00013971,2]
[382733518,1756723846108,-300.0,0.00013971,2]
[382733519,1756723846120,-300.0,0.00013971,2]
[382733520,1756723846129,-600.0,0.00013971,2]
[382733521,1756723846139,-151.0,0.00013971,2]
[382733522,1756723846148,-151.0,0.00013971,2]
[382733523,1756723846157,-480.0,0.00013972,2]
[382733524,1756723846167,-480.0,0.00013972,2]
[382733525,1756723846175,-480.0,0.00013972,2]
[382733526,1756723846184,-252.0223145,0.00013972,2]
[382733527,1756723846194,-480.0,0.00013972,2]
[382733528,1756723846203,-480.0,0.00013972,2]
[382733529,1756723846211,-443.39357532,0.00013972,2]
[382733530,1756723846220,-490.03,0.00013972,2]
[382733531,1756723846230,-481.4279086,0.00013972,2]
[382733532,1756723846239,-480.0,0.00013972,2]
[382733533,1756723846248,-480.0,0.00013972,2]
[382733534,1756723846257,-368.00354687,0.00013972,2]
[382733535,1756723846266,-328.78798777,0.00013972,2]
[382733536,1756723846275,-151.0,0.00013972,2]
[382733537,1756723846284,-151.0,0.00013972,2]
[382733538,1756723846294,-480.0,0.00013972,2]
[382733539,1756723846303,-480.0,0.00013972,2]
[382733541,1756723846313,-480.0,0.00013972,2]
[382733542,1756723846322,-480.0,0.00013972,2]
[382733543,1756723846331,-480.0,0.00013972,2]
[382733545,1756723846340,-480.0,0.00013972,2]
[382733547,1756723846350,-480.0,0.00013972,2]
[382733554,1756723846408,-480.0,0.00013972,2]
[382733556,1756723846417,-480.0,0.00013972,2]
[382733558,1756723846427,-480.0,0.00013972,2]
[382733560,1756723846436,-480.0,0.00013972,2]
[382733562,1756723846445,-480.0,0.00013972,2]
[382733564,1756723846454,-424.99137622,0.00013972,2]
[382733566,1756723846464,-480.0,0.00013972,2]
[382733567,1756723846473,-480.0,0.00013972,2]
[382733569,1756723846482,-480.0,0.00013972,2]
[382733571,1756723846491,-480.0,0.00013972,2]